bitfinex/quotes_SOLUSD_20250624
["timestamp","ask_amount","ask_price","bid_price","bid_amount"]
[1750783010151,6.3,144.5,144.48,18.64964886]
[1750783011253,6.3,144.5,144.48,25.18526313]
[1750783011454,6.3,144.5,144.48,32.1065083]
[1750783011837,6.3,144.5,144.48,25.57089403]
[1750783012335,1.6539,144.55,144.49,6.53561427]
[1750783012528,14.48951427,144.55,144.51,18.64964886]
[1750783013327,7.9539,144.55,144.51,13.45549085]
[1750783014055,14.48951427,144.55,144.51,13.45549085]
[1750783014255,6.3,144.55,144.51,13.45549085]
[1750783014458,13.21815414,144.55,144.51,6.53561427]
[1750783014627,19.75376841,144.55,144.51,18.64964886]
[1750783014829,6.53561427,144.54,144.49,13.45637386]
[1750783017736,6.53561427,144.54,144.5,25.18526313]
[1750783017937,12.83561427,144.55,144.51,6.53561427]
[1750783018136,19.75376122,144.55,144.51,6.53561427]
[1750783018553,12.83561427,144.55,144.51,6.53561427]
[1750783019246,19.75373777,144.55,144.51,6.53561427]
[1750783019448,19.75373777,144.55,144.5,25.18526313]
[1750783020044,19.75373777,144.55,144.49,6.92075959]
[1750783020045,6.53561427,144.54,144.49,6.53561427]
[1750783020245,6.53561427,144.53,144.49,13.45637775]
[1750783021130,13.2181235,144.55,144.49,13.45637775]
[1750783021131,13.45444427,144.54,144.49,13.45637775]
[1750783021327,19.75384449,144.55,144.5,25.18526313]
[1750783021551,19.75384449,144.55,144.51,6.53561427]
[1750783021751,13.21823022,144.55,144.5,25.18526313]
[1750783022058,19.75384449,144.55,144.5,25.18526313]
[1750783022453,6.3,144.55,144.53,6.53561427]
[1750783022837,6.3,144.55,144.52,6.53561427]
[1750783023455,6.3,144.55,144.52,13.45496256]
[1750783023640,13.21812436,144.55,144.5,25.56981273]
[1750783023844,6.3,144.55,144.51,6.53561427]
[1750783025059,6.3,144.55,144.52,18.64964886]
[1750783026657,19.75370927,144.55,144.5,13.45587945]
[1750783026965,19.75370927,144.55,144.51,18.64964886]
[1750783029901,13.45420295,144.54,144.5,6.53561427]
[1750783030064,6.53561427,144.53,144.49,6.53561427]
[1750783031975,6.91945751,144.52,144.49,18.64964886]
[1750783032143,6.53561427,144.53,144.49,25.18526313]
[1750783033661,6.53561427,144.53,144.49,18.64964886]
[1750783034572,13.45463216,144.53,144.49,25.57054216]
[1750783035435,13.45463216,144.53,144.49,18.64964886]
[1750783036241,6.53561427,144.53,144.49,25.57042938]
[1750783037874,6.53561427,144.53,144.49,32.10604365]
[1750783040377,6.53561427,144.53,144.49,25.57042938]
[1750783040562,13.4547127,144.53,144.49,18.64964886]
[1750783040748,6.53561427,144.51,144.43,24.94633797]
[1750783040942,6.53561427,144.49,144.44,25.18526313]
[1750783041195,6.53561427,144.46,144.42,6.53561427]
[1750783041479,6.53561427,144.45,144.4,13.46063277]
[1750783041689,6.53561427,144.45,144.41,18.64964886]
[1750783041869,6.53561427,144.46,144.41,25.18526313]
[1750783042181,8.10771427,144.47,144.43,18.64964886]
[1750783042382,8.10771427,144.47,144.43,25.57323037]
[1750783042595,15.02961831,144.47,144.43,18.64964886]
[1750783042889,15.02961831,144.47,144.43,25.57341155]
[1750783043588,8.10771427,144.47,144.43,25.57341155]
[1750783046683,1.5721,144.47,144.43,32.10902582]
[1750783047960,8.10771427,144.47,144.43,32.10902582]
[1750783048987,8.10771427,144.47,144.43,25.57341155]
[1750783049166,6.53561427,144.46,144.43,18.64964886]
[1750783050671,6.53561427,144.46,144.41,13.4601573]
[1750783051073,8.49410458,144.47,144.41,18.64964886]
[1750783051301,6.53561427,144.44,144.41,18.64964886]
[1750783052097,6.53561427,144.45,144.41,18.64964886]
[1750783052267,13.45846294,144.45,144.41,18.64964886]
[1750783052769,13.45846294,144.45,144.41,25.57437143]
[1750783052970,6.53561427,144.45,144.41,25.57437143]
[1750783053492,19.68522415,144.46,144.41,32.1099857]
[1750783054966,6.53561427,144.44,144.41,18.64964886]
[1750783056100,6.53561427,144.45,144.41,25.57435411]
[1750783056687,6.53561427,144.45,144.41,18.64964886]
[1750783056873,13.4585346,144.45,144.41,18.64964886]
[1750783057800,6.53561427,144.44,144.4,18.64964886]
[1750783057979,6.53561427,144.44,144.4,25.18526313]
[1750783059097,6.53561427,144.44,144.4,32.11010789]
[1750783059291,13.4585346,144.45,144.4,32.11010789]
[1750783059500,8.49427678,144.47,144.42,25.18526313]
[1750783059700,6.53561427,144.46,144.42,25.18526313]
[1750783059885,6.53561427,144.46,144.42,18.64964886]
[1750783060705,6.92270684,144.46,144.4,25.18526313]
[1750783060881,6.53561427,144.45,144.41,18.64964886]
[1750783061879,13.45845633,144.45,144.41,18.64964886]
[1750783063104,13.45845633,144.45,144.41,6.92460425]
[1750783063405,13.45845633,144.45,144.41,25.57425311]
[1750783064306,13.45845633,144.45,144.41,18.64964886]
[1750783064503,13.45845633,144.45,144.4,13.46058449]
[1750783064684,13.45845633,144.45,144.41,18.64964886]
[1750783067508,6.53561427,144.44,144.39,6.92547556]
[1750783067690,6.53561427,144.44,144.39,13.46108983]
[1750783068008,13.45845633,144.45,144.4,6.53561427]
[1750783068907,13.45845633,144.45,144.4,13.46067424]
[1750783069108,6.53561427,144.44,144.4,6.53561427]
[1750783069409,6.53561427,144.44,144.39,13.46107416]
[1750783069710,6.53561427,144.42,144.38,18.64964886]
[1750783070010,6.53561427,144.41,144.37,18.64964886]
[1750783071201,13.46058268,144.41,144.37,18.64964886]
[1750783072292,14.96428268,144.41,144.37,18.64964886]
[1750783072902,8.03931427,144.41,144.37,25.57627407]
[1750783073507,1.5037,144.41,144.37,32.11188834]
[1750783073897,8.42847622,144.41,144.37,32.11188834]
[1750783074592,14.96409049,144.41,144.37,25.57627407]
[1750783077117,1.5037,144.41,144.37,32.11188834]
[1750783078808,8.42844803,144.41,144.37,32.11188834]
[1750783079900,1.5037,144.41,144.37,32.11188834]
[1750783081508,14.96412347,144.41,144.37,18.64964886]
[1750783081713,6.53561427,144.4,144.36,6.53561427]
[1750783081902,6.53561427,144.39,144.35,18.64964886]
[1750783082211,6.53561427,144.39,144.35,19.00390616]
[1750783082611,6.53561427,144.4,144.35,25.53952043]
[1750783082808,6.53561427,144.39,144.35,0.3542573]
[1750783083011,8.03931427,144.41,144.36,6.53561427]
[1750783083214,1.5037,144.41,144.37,18.64964886]
[1750783083404,8.03931427,144.41,144.37,18.64964886]
[1750783084229,1.5037,144.41,144.37,25.57582735]
[1750783084399,1.5037,144.41,144.38,6.53561427]
[1750783084920,1.5037,144.41,144.37,32.11144162]
[1750783085506,8.03931427,144.41,144.37,32.11144162]
[1750783086030,8.03931427,144.41,144.37,25.57582735]
[1750783086239,8.03931427,144.41,144.37,32.11144162]
[1750783086416,1.5037,144.41,144.37,32.11144162]
[1750783086617,6.3,144.42,144.39,6.53561427]
[1750783086923,6.3,144.42,144.4,6.53561427]
[1750783087102,6.3,144.42,144.41,25.18526313]
[1750783088124,6.3,144.42,144.41,32.10999133]
[1750783091409,6.3,144.42,144.41,25.57437706]
[1750783091725,6.3,144.42,144.41,32.10999133]
[1750783092709,24.89650621,144.47,144.42,25.57343498]
[1750783092913,24.89650621,144.47,144.43,6.53561427]
[1750783093306,11.43883001,144.47,144.44,25.18526313]
[1750783093529,1.5426,144.48,144.45,6.53561427]
[1750783093743,6.28,144.49,144.46,6.53561427]
[1750783094542,6.53561427,144.48,144.43,18.64964886]
[1750783094837,13.45704951,144.48,144.43,25.18526313]
[1750783095134,13.45704951,144.48,144.44,6.53561427]
[1750783096042,13.45704951,144.48,144.43,25.18526313]
[1750783096225,6.53561427,144.47,144.42,6.53561427]
[1750783096413,6.53561427,144.46,144.42,18.64964886]
[1750783096840,6.92281066,144.45,144.41,6.53561427]
[1750783097019,13.45842493,144.45,144.41,18.64964886]
[1750783097616,6.53561427,144.43,144.37,26.0]
[1750783097839,6.53561427,144.43,144.4,18.64964886]
[1750783097840,12.81561427,144.43,144.4,18.64964886]
[1750783098214,12.81561427,144.43,144.37,6.92664681]
[1750783098519,6.53561427,144.41,144.37,18.64964886]
[1750783098720,13.46067332,144.41,144.37,18.64964886]
[1750783098922,6.53561427,144.39,144.36,19.00390616]
[1750783099525,6.53561427,144.4,144.36,19.00390616]
[1750783100930,6.53561427,144.39,144.36,0.3542573]
[1750783101938,6.53561427,144.38,144.36,0.3542573]
[1750783102139,6.53561427,144.39,144.36,0.3542573]
[1750783102338,6.53561427,144.38,144.36,0.3542573]
[1750783102648,6.53561427,144.39,144.36,0.3542573]
[1750783103851,15.05403843,144.41,144.36,6.88987157]
[1750783104730,1.5935,144.41,144.37,25.18526313]
[1750783104980,6.28,144.43,144.39,6.53561427]
[1750783105240,12.81561427,144.43,144.4,18.64964886]
[1750783105743,6.28,144.43,144.41,6.9247282]
[1750783105947,6.28,144.43,144.4,6.53561427]
[1750783107435,6.28,144.43,144.41,6.53561427]
[1750783108031,6.28,144.43,144.42,25.18526313]
[1750783109725,6.28,144.43,144.42,32.10951184]
[1750783110242,6.28,144.43,144.42,25.18526313]
[1750783111950,6.28,144.43,144.42,6.53561427]
[1750783113056,6.28,144.43,144.42,25.18526313]
[1750783113956,6.28,144.43,144.42,32.10951184]
[1750783117327,7.8432,144.48,144.43,18.64964886]
[1750783117542,6.28,144.48,144.46,6.53561427]
[1750783117937,6.28,144.48,144.45,6.53561427]
[1750783118561,13.20141704,144.48,144.45,6.53561427]
[1750783118738,13.20141704,144.48,144.42,42.88451936]
[1750783118941,13.20141704,144.48,144.45,18.64964886]
[1750783119261,6.28,144.48,144.45,18.64964886]
[1750783119658,6.28,144.48,144.45,6.53561427]
[1750783119992,6.28,144.48,144.45,25.18526313]
[1750783121148,13.20137524,144.48,144.45,25.18526313]
[1750783122544,13.20137524,144.48,144.45,18.64964886]
[1750783122842,13.20137524,144.48,144.45,25.18526313]
[1750783123166,13.20137524,144.48,144.45,18.64964886]
[1750783123871,13.20137524,144.48,144.44,6.53561427]
[1750783124663,19.73698951,144.48,144.43,6.53561427]
[1750783127171,6.53561427,144.46,144.42,25.18526313]
[1750783128447,13.45832723,144.46,144.42,25.18526313]
[1750783129665,6.92271296,144.46,144.42,25.18526313]
[1750783129977,6.92271296,144.46,144.43,6.53561427]
[1750783130274,13.45768093,144.47,144.43,6.53561427]
[1750783130563,6.92206666,144.47,144.44,6.53561427]
[1750783130945,19.73720756,144.48,144.44,6.53561427]
[1750783132080,6.28,144.48,144.47,6.53561427]
[1750783132461,6.28,144.48,144.46,25.18526313]
[1750783134374,6.28,144.48,144.46,32.10751586]
[1750783134575,6.28,144.48,144.46,25.18526313]
[1750783135087,13.20142753,144.48,144.41,49.55606547]
[1750783135252,6.53561427,144.47,144.43,6.53561427]
[1750783135582,13.45773072,144.47,144.43,6.53561427]
[1750783135756,6.92211645,144.47,144.43,6.53561427]
[1750783136079,13.45773072,144.47,144.43,6.53561427]
[1750783137563,13.45773072,144.47,144.42,25.18526313]
[1750783137773,6.92211645,144.47,144.42,32.10927785]
[1750783138071,13.45773072,144.47,144.43,6.53561427]
[1750783138773,13.45773072,144.47,144.42,25.18526313]
[1750783139768,13.45773072,144.47,144.42,6.53561427]
[1750783139977,13.45773072,144.47,144.42,25.18526313]
[1750783140669,6.53561427,144.46,144.42,25.18526313]
[1750783141253,6.53561427,144.46,144.41,25.18526313]
[1750783141450,12.79561427,144.46,144.41,25.18526313]
[1750783142052,6.92281066,144.45,144.41,25.18526313]
[1750783142745,13.45842493,144.45,144.4,6.53561427]
[1750783142946,6.53561427,144.44,144.39,6.53561427]
[1750783143163,6.53561427,144.44,144.38,44.64964886]
[1750783143346,6.53561427,144.43,144.39,6.53561427]
[1750783143757,18.62078012,144.45,144.4,6.53561427]
[1750783143958,13.45842493,144.45,144.4,13.46079674]
[1750783144382,18.62078012,144.45,144.41,6.53561427]
[1750783144755,18.62078012,144.45,144.4,13.46079674]
[1750783144953,13.45842493,144.45,144.4,6.92518247]
[1750783145159,18.61717948,144.45,144.4,13.46079674]
[1750783145487,18.61717948,144.45,144.37,18.64964886]
[1750783145488,6.53561427,144.43,144.39,13.46113572]
[1750783146068,6.53561427,144.43,144.38,13.46155399]
[1750783146565,6.53561427,144.43,144.39,6.53561427]
[1750783146960,13.45899065,144.44,144.39,6.53561427]
[1750783147163,18.61736151,144.45,144.41,6.53561427]
[1750783147364,6.26,144.43,144.4,25.18526313]
[1750783147672,6.26,144.43,144.4,18.64964886]
[1750783148268,6.26,144.43,144.4,32.11017691]
[1750783149283,6.26,144.43,144.41,6.53561427]
[1750783150268,6.26,144.43,144.41,13.45999479]
[1750783152579,6.26,144.43,144.42,18.64964886]
[1750783152781,6.26,144.43,144.42,25.18526313]
[1750783154680,6.26,144.43,144.42,32.10951184]
[1750783154883,5.15875455,144.47,144.42,49.42013363]
[1750783155058,6.26,144.48,144.46,6.53561427]
[1750783156285,6.26,144.48,144.47,6.92185228]
[1750783157968,6.26,144.48,144.46,25.5719803]
[1750783160388,6.26,144.48,144.46,32.10759457]
[1750783161888,6.26,144.5,144.47,25.18526313]
[1750783162092,6.26,144.5,144.49,6.53561427]
[1750783162278,6.26,144.5,144.49,25.18526313]
[1750783163694,6.26,144.5,144.49,32.1061573]
[1750783164412,6.26,144.55,144.5,18.64964886]
[1750783164576,6.26,144.55,144.52,6.53561427]
[1750783165266,6.53561427,144.53,144.46,1.6243]
[1750783165469,6.53561427,144.53,144.47,18.64964886]
[1750783165686,6.53561427,144.52,144.47,25.18526313]
[1750783165885,6.53561427,144.52,144.48,6.53561427]
[1750783166575,6.91961147,144.52,144.48,6.53561427]
[1750783167091,13.45475221,144.53,144.49,6.53561427]
[1750783168399,6.91913794,144.53,144.49,13.45647606]
[1750783168695,6.91913794,144.53,144.49,6.53561427]
[1750783169691,13.45475221,144.53,144.49,6.53561427]
[1750783170088,13.45475221,144.53,144.48,6.53561427]
[1750783170298,6.53561427,144.52,144.48,6.53561427]
[1750783170885,6.53561427,144.51,144.47,18.64964886]
[1750783171997,13.45583239,144.51,144.47,18.64964886]
[1750783172203,6.92021812,144.51,144.47,18.64964886]
[1750783172411,6.26,144.5,144.47,25.18526313]
[1750783172591,6.26,144.5,144.47,18.64964886]
[1750783172775,12.79561427,144.5,144.47,18.64964886]
[1750783172978,6.53561427,144.49,144.44,6.92291739]
[1750783173174,6.53561427,144.49,144.45,25.18526313]
[1750783173400,6.26,144.5,144.46,6.53561427]
[1750783173790,12.79561427,144.5,144.46,6.53561427]
[1750783174400,19.71614522,144.5,144.46,6.53561427]
[1750783174707,19.71614522,144.5,144.46,13.45791728]
[1750783174883,13.18053095,144.5,144.46,13.45791728]
[1750783175601,6.26,144.5,144.46,13.45791728]
[1750783175907,6.26,144.5,144.48,6.53561427]
[1750783177286,6.26,144.5,144.47,6.92154359]
[1750783177487,6.26,144.5,144.48,6.53561427]
[1750783179596,6.26,144.5,144.48,13.45697642]
[1750783179905,6.26,144.5,144.48,6.53561427]
[1750783180287,6.2454,144.56,144.49,25.18526313]
[1750783180481,6.26,144.55,144.52,6.53561427]
[1750783181286,6.26,144.55,144.51,13.4554577]
[1750783181491,6.26,144.55,144.52,6.53561427]
[1750783182326,6.26,144.55,144.47,18.64964886]
[1750783182327,6.53561427,144.53,144.47,18.64964886]
[1750783182503,13.45475359,144.53,144.49,6.53561427]
[1750783183193,6.91913932,144.53,144.49,6.53561427]
[1750783185293,13.45475359,144.53,144.49,18.64964886]
[1750783185985,6.53561427,144.52,144.47,6.53561427]
[1750783186193,6.53561427,144.49,144.45,18.64964886]
[1750783186486,6.53561427,144.47,144.42,6.53561427]
[1750783186795,6.92233144,144.46,144.43,18.64964886]
[1750783186998,6.92233144,144.46,144.43,6.53561427]
[1750783188922,6.92185228,144.47,144.44,18.64964886]
[1750783191221,6.92185228,144.47,144.43,25.18526313]
[1750783192611,6.53561427,144.46,144.41,25.18526313]
[1750783193897,6.53561427,144.45,144.41,25.18526313]
[1750783194227,6.92328994,144.44,144.41,25.18526313]
[1750783197040,13.45890421,144.44,144.41,18.64964886]
[1750783198225,6.92328994,144.44,144.41,18.64964886]
[1750783199805,13.45890421,144.44,144.41,18.64964886]
[1750783200839,13.45890421,144.44,144.4,18.64964886]
[1750783201502,6.92233144,144.46,144.41,6.53561427]
[1750783201701,6.53561427,144.45,144.41,6.53561427]
[1750783201905,6.53561427,144.44,144.4,18.64964886]
[1750783202497,6.53561427,144.42,144.38,18.64964886]
[1750783202713,6.24,144.42,144.38,25.18526313]
[1750783203228,6.24,144.42,144.4,18.64964886]
[1750783203399,6.24,144.42,144.4,25.18526313]
[1750783203603,6.24,144.42,144.4,32.11042092]
[1750783206127,6.24,144.42,144.4,25.18526313]
[1750783206330,6.24,144.42,144.4,18.64964886]
[1750783208032,6.24,144.42,144.38,25.18526313]
[1750783208332,12.77561427,144.42,144.38,25.18526313]
[1750783209219,6.24,144.42,144.38,25.18526313]
[1750783209421,12.77561427,144.42,144.38,25.18526313]
[1750783210010,12.77561427,144.42,144.38,32.11127882]
[1750783211137,6.24,144.42,144.38,32.11127882]
[1750783212320,6.24,144.42,144.41,6.53561427]
[1750783212533,6.24,144.42,144.41,18.64964886]
[1750783212725,12.77561427,144.42,144.38,6.53561427]
[1750783212921,12.77561427,144.42,144.37,25.18526313]
[1750783213118,6.53561427,144.41,144.37,6.53561427]
[1750783214215,13.46070188,144.41,144.36,6.88987157]
[1750783214419,6.53561427,144.37,144.36,0.3542573]
[1750783216342,13.46226108,144.37,144.36,0.3542573]
[1750783222347,6.53561427,144.37,144.36,0.3542573]
[1750783222535,6.53561427,144.37,144.26,12.16523532]
[1750783222536,14.38361427,144.37,144.26,6.6464]
[1750783222738,6.53561427,144.28,144.24,13.46840766]
[1750783223128,6.53561427,144.28,144.25,18.64964886]
[1750783223331,6.53561427,144.28,144.24,6.53561427]
[1750783223529,6.53561427,144.28,144.24,18.64964886]
[1750783223857,6.24,144.29,144.22,39.46931373]
[1750783223858,6.53561427,144.27,144.22,39.46931373]
[1750783224028,6.53561427,144.27,144.23,25.18526313]
[1750783224230,6.24,144.29,144.25,6.53561427]
[1750783224526,6.24,144.29,144.25,6.93213571]
[1750783224738,6.24,144.29,144.25,13.46774998]
[1750783225341,12.77561427,144.29,144.25,13.46774998]
[1750783225854,6.24,144.29,144.26,6.53561427]
[1750783226553,6.24,144.29,144.26,13.4673968]
[1750783227450,6.24,144.31,144.27,6.53561427]
[1750783227757,6.24,144.31,144.28,6.53561427]
[1750783227929,6.24,144.31,144.29,6.53561427]
[1750783228128,6.24,144.31,144.27,18.64964886]
[1750783228331,6.24,144.31,144.3,6.53561427]
[1750783228530,6.24,144.31,144.3,13.4656212]
[1750783228750,6.24,144.31,144.3,32.11527006]
[1750783231546,6.24,144.31,144.3,25.57965579]
[1750783231751,6.24,144.31,144.3,32.11527006]
[1750783236961,6.53561427,144.34,144.3,32.11527006]
[1750783236962,12.77561427,144.34,144.3,32.11527006]
[1750783238842,12.77561427,144.34,144.3,25.18526313]
[1750783239356,6.53561427,144.33,144.28,6.53561427]
[1750783239560,6.53561427,144.29,144.23,17.33339068]
[1750783239869,6.53561427,144.29,144.25,6.53561427]
[1750783240243,6.6188,144.33,144.24,18.64964886]
[1750783240244,6.53561427,144.28,144.24,32.11815275]
[1750783240443,12.77561427,144.28,144.24,32.11815275]
[1750783241242,19.70661748,144.28,144.23,32.93319525]
[1750783241449,19.70661748,144.28,144.23,39.46880952]
[1750783242453,6.53561427,144.27,144.23,39.46880952]
[1750783243064,6.53561427,144.27,144.22,18.64964886]
[1750783243065,13.46707615,144.27,144.22,32.11897971]
[1750783244140,6.53561427,144.26,144.22,32.11897971]
[1750783244869,6.53561427,144.27,144.23,6.53561427]
[1750783245285,6.53561427,144.27,144.22,32.11897971]
[1750783245450,6.53561427,144.26,144.22,32.11897971]
[1750783247357,6.53561427,144.26,144.22,25.58336544]
[1750783247670,6.53561427,144.26,144.22,32.11897971]
[1750783249464,6.53561427,144.26,144.22,25.58336544]
[1750783251976,6.53561427,144.26,144.22,32.11897971]
[1750783252484,6.53561427,144.27,144.22,32.11897971]
[1750783255181,6.24,144.28,144.23,18.64964886]
[1750783255490,6.24,144.28,144.23,25.18526313]
[1750783255671,19.70659817,144.28,144.24,6.93288962]
[1750783255867,6.53561427,144.27,144.24,6.93288962]
[1750783256985,12.77561427,144.28,144.24,6.93288962]
[1750783257172,12.77561427,144.28,144.24,13.46850389]
[1750783257995,8.2316,144.33,144.27,6.53561427]
[1750783258165,6.22,144.32,144.29,6.53561427]
[1750783258359,6.22,144.33,144.3,6.53561427]
[1750783258587,6.22,144.33,144.31,6.53561427]
[1750783259288,13.46287852,144.36,144.31,6.53561427]
[1750783259289,6.53561427,144.36,144.31,6.53561427]
[1750783259484,6.22,144.35,144.31,6.53561427]
[1750783259667,12.75561427,144.35,144.31,6.53561427]
[1750783260083,19.68337758,144.35,144.31,6.53561427]
[1750783260278,6.53561427,144.32,144.27,18.64964886]
[1750783260463,6.53561427,144.32,144.27,25.18526313]
[1750783261377,6.53561427,144.32,144.27,32.11650047]
[1750783261581,13.46456932,144.33,144.29,6.53561427]
[1750783262065,13.46456932,144.33,144.27,25.5808862]
[1750783262066,6.53561427,144.32,144.28,6.53561427]
[1750783262564,6.53561427,144.32,144.28,13.46647255]
[1750783262960,13.46437915,144.33,144.28,13.46647255]
[1750783263194,6.53561427,144.31,144.27,25.18526313]
[1750783263388,6.53561427,144.32,144.27,25.18526313]
[1750783264091,6.53561427,144.32,144.27,32.11666277]
[1750783264483,13.46468825,144.32,144.28,6.53561427]
[1750783265461,13.46468825,144.32,144.27,32.11666277]
[1750783265887,13.46468825,144.32,144.28,6.53561427]
[1750783266979,13.46468825,144.32,144.27,32.11666277]
[1750783268192,6.53561427,144.32,144.27,32.11666277]
[1750783268881,6.92856647,144.33,144.27,32.11666277]
[1750783269083,0.14216157,144.36,144.33,18.64964886]
[1750783269294,0.14216157,144.36,144.29,26.0]
[1750783269475,6.53561427,144.35,144.29,26.0]
[1750783269675,6.53561427,144.34,144.3,6.53561427]
[1750783269899,6.53561427,144.35,144.3,6.53561427]
[1750783270132,6.67777584,144.36,144.32,13.46437896]
[1750783270274,0.14216157,144.36,144.34,6.53561427]
[1750783270594,0.14216157,144.36,144.32,6.92876469]
[1750783270595,0.14216157,144.36,144.35,6.53561427]
[1750783271378,0.14216157,144.36,144.35,25.18526313]
[1750783271680,6.53561427,144.43,144.35,51.18526313]
[1750783271681,0.14216157,144.39,144.35,51.18526313]
[1750783271884,0.14216157,144.39,144.38,25.18526313]
[1750783272270,0.14216157,144.39,144.38,32.11143018]
[1750783272893,0.14216157,144.39,144.38,58.11143018]
[1750783273768,0.14216157,144.42,144.37,6.92649334]
[1750783273979,0.14216157,144.42,144.38,25.18526313]
[1750783274303,13.60206356,144.42,144.37,6.53561427]
[1750783274601,0.14216157,144.42,144.38,6.53561427]
[1750783274821,0.14216157,144.42,144.4,6.53561427]
[1750783275325,0.14216157,144.42,144.39,6.53561427]
[1750783275676,0.14216157,144.42,144.38,6.53561427]
[1750783276306,0.14216157,144.42,144.39,13.46129096]
[1750783276476,0.14216157,144.42,144.4,6.53561427]
[1750783276674,0.14216157,144.42,144.41,6.53561427]
[1750783278384,0.14216157,144.42,144.41,13.46034247]
[1750783280404,0.14216157,144.42,144.41,6.9247282]
[1750783280599,0.14216157,144.45,144.42,18.64964886]
[1750783280981,0.14216157,144.45,144.44,6.53561427]
[1750783282531,0.14216157,144.45,144.44,13.45890421]
[1750783282997,7.06311955,144.49,144.44,13.45890421]
[1750783283324,13.59873382,144.49,144.44,13.45890421]
[1750783283618,13.59873382,144.49,144.45,6.53561427]
[1750783283816,13.59873382,144.49,144.44,13.45890421]
[1750783284620,6.67777584,144.49,144.44,13.45890421]
[1750783284819,6.67777584,144.49,144.45,6.53561427]
[1750783285531,13.59880681,144.49,144.44,13.45890421]
[1750783285828,6.67777584,144.47,144.42,6.53561427]
[1750783286320,6.92103097,144.49,144.39,35.96370954]
[1750783286321,0.14216157,144.43,144.39,6.53561427]
[1750783286518,6.36216157,144.43,144.4,6.53561427]
[1750783286711,6.36216157,144.43,144.4,13.46076445]
[1750783287393,6.36216157,144.43,144.37,43.31661171]
[1750783287394,6.36216157,144.43,144.41,6.53561427]
[1750783287596,6.36216157,144.43,144.39,6.53561427]
[1750783287804,12.89777584,144.43,144.39,6.53561427]
[1750783288226,6.36216157,144.43,144.39,6.53561427]
[1750783288917,6.36216157,144.43,144.39,13.46108368]
[1750783290627,21.39278353,144.43,144.38,13.46147766]
[1750783290829,0.14216157,144.41,144.38,13.46147766]
[1750783291499,6.53561427,144.39,144.34,6.92808646]
[1750783291698,0.14216157,144.37,144.33,13.46407741]
[1750783291928,6.36216157,144.37,144.33,6.92846314]
[1750783292138,6.36216157,144.37,144.33,13.46407741]
[1750783292310,6.36216157,144.37,144.34,6.53561427]
[1750783293418,13.28880853,144.37,144.34,6.53561427]
[1750783293740,19.8244228,144.37,144.33,6.53561427]
[1750783294036,6.53561427,144.35,144.3,6.53561427]
[1750783294207,6.53561427,144.34,144.29,9.35347543]
[1750783294405,6.53561427,144.34,144.29,2.81786116]
[1750783294610,6.53561427,144.32,144.29,2.81786116]
[1750783294808,6.53561427,144.33,144.29,16.28380618]
[1750783295510,6.53561427,144.34,144.29,16.28380618]
[1750783296111,6.53561427,144.34,144.3,6.53561427]
[1750783297214,6.53561427,144.34,144.3,13.46533785]
[1750783297731,6.53561427,144.34,144.3,6.92972358]
[1750783298819,6.53561427,144.34,144.3,13.46533785]
[1750783300735,27.622,144.36,144.32,6.53561427]
[1750783300736,34.15761427,144.36,144.32,6.53561427]
[1750783301640,1.622,144.36,144.32,6.53561427]
[1750783301843,12.89777584,144.37,144.33,6.53561427]
[1750783302224,6.53561427,144.36,144.32,6.53561427]
[1750783302711,0.14216157,144.37,144.33,13.46418074]
[1750783302910,6.22,144.36,144.33,13.46418074]
[1750783303822,6.36216157,144.36,144.35,6.53561427]
[1750783304239,6.36216157,144.36,144.35,25.18526313]
[1750783304740,6.36216157,144.36,144.35,32.11286964]
[1750783308144,0.14216157,144.36,144.35,32.11286964]
[1750783308825,0.14216157,144.41,144.36,18.64964886]
[1750783310231,0.14216157,144.41,144.4,6.53561427]
[1750783310958,0.14216157,144.41,144.4,13.46082202]
[1750783311331,0.14216157,144.41,144.4,25.57485661]
[1750783311545,0.14216157,144.41,144.4,32.11047088]
[1750783311740,0.14216157,144.44,144.4,32.11047088]
[1750783311946,0.14216157,144.44,144.41,6.53561427]
[1750783312950,0.14216157,144.44,144.41,13.46019771]
[1750783313850,0.14216157,144.41,144.37,25.5760907]
[1750783314041,6.67777584,144.41,144.37,6.53561427]
[1750783314235,0.14216157,144.41,144.38,6.53561427]
[1750783314955,0.14216157,144.41,144.37,25.18526313]
[1750783315191,0.14216157,144.41,144.38,13.46178132]
[1750783316251,0.14216157,144.42,144.38,13.46178132]
[1750783316442,6.67777584,144.42,144.38,13.46178132]
[1750783316847,13.60203364,144.42,144.38,13.46178132]
[1750783317433,13.60203364,144.42,144.38,6.53561427]
[1750783317635,13.60203364,144.42,144.38,13.46165862]
[1750783319858,13.60203364,144.42,144.37,6.53561427]
[1750783319859,0.14216157,144.4,144.37,6.53561427]
[1750783320061,0.14216157,144.4,144.36,25.18526313]
[1750783320966,0.14216157,144.4,144.36,13.46252468]
[1750783321364,0.14216157,144.37,144.34,6.53561427]